Cogmind - Beta 16 --- EXPLORER MODE // 2025.12.04 @ 08:12:07 Player: K.K.Y. Result: Destroyed by Y1-FSV(R) with Subdweller Machine Gun Performance ------------- Evolutions (0) 0 Regions Visited (3) 600 Robots Destroyed (44) 220 Value Destroyed (789) 789 Prototype IDs (2) 40 Alien Tech Used (0) 0 Bonus (0) 0 TOTAL SCORE: 1649 Bonus ------- None Cogmind --------- Core Integrity 0/250 Matter 283/300 Energy 100/100 System Corruption 0% Temperature Cool (0) Movement Core (150) Ox2 Location -10/Subcaves Parts ------- > --- POWER (1) -------- (None) > --- PROPULSION (2) --- (None) > --- UTILITY (3) ------ Improved Heat Sink Terrain Scan Processor > --- WEAPON (2) ------- Particle Gun Subdweller Machine Gun > --- INVENTORY (5) ---- Cargo Storage Unit Experimental Sensor Array Decoy Drone Bay (0/16) Peak State ------------ > --- POWER ------------ Ion Engine > --- PROPULSION ------- Light Treads Light Treads > --- UTILITY ---------- Terrain Scan Processor Decoy Drone Bay > --- WEAPON ----------- Heavy Assault Rifle Makeshift Spear > --- INVENTORY -------- Cargo Storage Unit Experimental Sensor Array [Rating: 26] Favorites ----------- Power Ion Engine Engine Ion Engine Propulsion Light Treads Treads Light Treads Utility Terrain Scan Processor Device Improved Terrain Scanner Processor Terrain Scan Processor Weapon Assault Rifle Energy Gun Particle Gun Ballistic Gun Assault Rifle Piercing Weapon Makeshift Spear Build | -11 -10 -10 -10 ------- Run | Yrd Mat Min Sub Slots Evolved 1 | . 1 . . Power . | . . . . Propulsion . | . . . . Utility 1 | . 1 . . Weapon . | . . . . Parts Attached 20 | 5 6 2 7 Power 2 | 1 1 . . Engine 2 | 1 1 . . Core . | . . . . Reactor . | . . . . Propulsion 4 | 2 1 . 1 Treads 4 | 2 1 . 1 Leg . | . . . . Wheel . | . . . . Hover . | . . . . Flight . | . . . . Utility 8 | . 4 1 3 Device 6 | . 2 1 3 Storage . | . . . . Processor 2 | . 2 . . Hackware . | . . . . Protection . | . . . . Artifact . | . . . . Weapon 6 | 2 . 1 3 Energy Gun 1 | . . . 1 Energy Cannon . | . . . . Ballistic Gun 4 | 2 . . 2 Ballistic Cannon . | . . . . Launcher . | . . . . Special Weapon . | . . . . Impact Weapon . | . . . . Slashing Weapon . | . . . . Piercing Weapon 1 | . . 1 . Special Melee Weapon . | . . . . Unidentified Prototypes 2 | . . . 2 Parts Lost 6 | . . . 6 Power 1 | . . . 1 Propulsion 2 | . . . 2 Utility 1 | . . . 1 Weapon 2 | . . . 2 Highest Loss Streak 5 | . . . 5 To Critical Strikes . | . . . . Average Backups 3 | 1 3 3 2 Power . | . . . . Propulsion . | . . . . Utility 1 | . 1 2 2 Weapon . | . 1 . . Tool/Special . | . . . . Unused Backups 4 | . . 3 1 Power . | . . . . Propulsion . | . . . . Utility 1 | . . . 1 Weapon 2 | . . 2 . Tool/Special 1 | . . 1 . Average Slot Usage (%) 88 | . 89 91 83 Engine 11 | . 12 12 11 Treads 24 | . 25 25 23 Device 11 | . 12 12 11 Processor 17 | . 14 25 14 Ballistic Gun 15 | . 25 9 9 Piercing Weapon 5 | . . 7 11 Peak Build Rating 26 | 5 12 16 26 Average Rating 12 | 4 10 15 16 On Entrance 8 | . 5 12 16 Avg Prop Armor Cover (%) . | . . . . Naked Turns . | . . . . Heaviest Build 24 | 9 10 10 24 Greatest Support 40 | 40 40 40 40 Greatest Overweight (x) 2 | . . . 2 Average Overweight (x) . | . . . . Largest Inventory Capacity 5 | 5 5 5 5 Average Capacity 5 | 5 5 5 5 Most Carried 5 | 4 5 5 5 Average Carried 4 | . 3 4 4 Final Capacity 5 | 5 5 5 5 Final Carried 5 | 3 5 5 5 Class Distribution -------------------- 100% | Hacker-Mutant Dominant Class ---------------- Hacker-Mutant | -10/Materials Hacker-Mutant | -10/Mines Hacker-Mutant | -10/Subcaves Resources | -11 -10 -10 -10 ----------- Run | Yrd Mat Min Sub Matter Collected 946 | 370 402 42 132 Remotely . | . . . . Salvage Created 1355 | 258 609 35 453 Parts 90 | 21 37 4 28 Haulers Intercepted 2 | . 2 . . Recyclers Shooed 1 | . 1 . . Parts Field Recycled . | . . . . Retrieved Matter . | . . . . Parts Self-Destructed . | . . . . Prevented . | . . . . Parts Restored . | . . . . Kills | -11 -10 -10 -10 ------- Run | Yrd Mat Min Sub Combat Hostiles Destroyed 22 | . 9 2 11 Melee 7 | . . . 7 Guns 15 | . 9 2 4 Classes Destroyed 12 | 2 7 . 3 Builder 2 | . 2 . . Tunneler 11 | 9 2 . . Hauler 2 | . 2 . . Recycler 2 | 1 1 . . Mechanic 1 | . 1 . . Turret 2 | . . . 2 Watcher 2 | . 2 . . Swarmer 10 | . 4 2 4 Grunt 5 | . 4 . 1 Sentry 1 | . . . 1 Artisan 1 | . . . 1 Subdweller 6 | . 1 . 5 Best Kill Streak 5 | 4 5 2 4 Combat Bots Only 4 | . 2 2 4 Max Kills in Single Turn 2 | 2 1 1 1 Gunslinging . | . . . . Exploded . | . . . . Melee 1 | . . . 1 Uniques/NPCs Destroyed . | . . . . Combat | -11 -10 -10 -10 -------- Run | Yrd Mat Min Sub Hostile Shots Fired 207 | . 51 4 152 Missed 75 | . 15 1 59 Hits 132 | . 36 3 93 Projectile 132 | . 36 3 93 Critical Strikes 2 | . 1 . 1 Damage Taken 1000 | . 342 16 642 Core 255 | . 87 . 168 Absorbed by Shields . | . . . . Ignored by Resistances 644 | . 211 10 423 Core Remaining (%) 100 | 100 . . . Volleys Fired 116 | 20 57 2 37 Largest 2 | 2 2 2 2 Hottest 95 | 40 40 40 95 Shots Fired 200 | 40 114 4 42 Gun 200 | 40 114 4 42 Cannon . | . . . . Launcher . | . . . . Special . | . . . . Kinetic 191 | 40 114 4 33 Thermal 9 | . . . 9 Explosive . | . . . . Electromagnetic . | . . . . Robot Hit Streak 18 | 10 16 9 18 Robot Miss Streak 3 | 1 3 . 1 Penetration Max . | . . . . Secondary Targets 1 | . 1 . . Max Gunslinging Chain 1 | . 1 . . Shots Hit Robots 176 | 32 94 3 47 Core Hits 63 | 11 32 2 18 Critical Kills . | . . . . Critical Parts Destroyed 1 | . 1 . . Critical Strikes 2 | . 1 . 1 Destroy 1 | . 1 . . Impale 1 | . . . 1 Melee Attacks 58 | . . 33 25 Impact . | . . . . Slashing . | . . . . Piercing 58 | . . 33 25 Sneak Attacks 3 | . . 1 2 Combat Hostiles 1 | . . . 1 Follow-up Attacks . | . . . . Damage Inflicted 2612 | 386 1152 89 985 Guns 1986 | 386 1152 25 423 Cannons . | . . . . Explosions . | . . . . Melee 622 | . . 64 558 Ramming 4 | . . . 4 Kinetic 1946 | 386 1152 25 383 Thermal 40 | . . . 40 Explosive . | . . . . Electromagnetic . | . . . . Impact . | . . . . Slashing . | . . . . Piercing 622 | . . 64 558 Highest Corruption . | . . . . Average Corruption . | . . . . Corruption Purged . | . . . . Corruption Blocked . | . . . . Overload Shots . | . . . . Overflow Damage 47 | . . 24 23 Projectiles . | . . . . Explosions . | . . . . Melee 47 | . . 24 23 Knockbacks . | . . . . Impact . | . . . . Kinetic . | . . . . Secondary . | . . . . Self-Inflicted Damage 2 | . . . 2 Shots . | . . . . Rammed 1 | . . . 1 Targets Rammed 1 | . . . 1 Kicked . | . . . . Crushed . | . . . . Highest Temperature 20 | . 20 . 1 Average Temperature 4 | . 4 . 1 Received Heat Transfer 660 | . 231 . 429 Siege Activations . | . . . . Martial Activations . | . . . . Shielding Activations . | . . . . Robots Disrupted . | . . . . Combat Hostiles . | . . . . Robots Corrupted . | . . . . Combat Hostiles . | . . . . Parts Fried . | . . . . Impact Corruptions . | . . . . Robots Melted . | . . . . Combat Hostiles . | . . . . Parts Melted 1 | . 1 . . Heat Transferred 111 | . . . 111 Parts Sabotaged . | . . . . Parts Stolen . | . . . . Parts Stripped . | . . . . Power Chain Reactions . | . . . . Alert | -11 -10 -10 -10 ------- Run | Yrd Mat Min Sub Maximum Alert Level . | . . . . Low Security (%) 100 | 100 100 100 . Level 1 . | . . . . Level 2 . | . . . . Level 3 . | . . . . Level 4 . | . . . . Level 5 . | . . . . High Security . | . . . . Max Security . | . . . . Peak Influence 50 | 15 50 50 . Initial . | . . . . Average 2 | 1 4 1 . Influence Increases 630 | 50 302 58 220 Destroy 0b10 Robot/C 360 | . 160 40 160 Destroy 0b10 Robot/NC 100 | 50 50 . . Destroy Leader 58 | . 48 10 . Successful Hack 21 | . 14 7 . Destroy Structure 1 | . . 1 . Lose Combat Pursuer 90 | . 30 . 60 Influence Decreases 630 | 50 302 58 220 Time Decay 620 | 50 302 58 210 Lost Part 10 | . . . 10 Squads Dispatched . | . . . . Investigation . | . . . . Extermination . | . . . . Reinforcement . | . . . . Assault . | . . . . Garrison . | . . . . Intercept . | . . . . Searches Triggered . | . . . . Construction Impeded . | . . . . Haulers Reinforced . | . . . . Active Scanning Responses . | . . . . Cargo Convoy Interrupts . | . . . . Stealth | -11 -10 -10 -10 --------- Run | Yrd Mat Min Sub Distress Signals 1 | . 1 . . Communications Jammed . | . . . . Distress Signals . | . . . . Times Spotted 38 | . 19 2 17 Peak Tracking Total 6 | . 3 2 6 Tactical Retreats 3 | . 2 . 1 Traps | -11 -10 -10 -10 ------- Run | Yrd Mat Min Sub Traps Triggered 2 | . 2 . . Indirectly . | . . . . Trap Hack Attempts . | . . . . Triggered . | . . . . Disarmed . | . . . . Reprogrammed . | . . . . Reused . | . . . . Traps Extracted . | . . . . Installed . | . . . . Triggered . | . . . . Machines | -11 -10 -10 -10 ---------- Run | Yrd Mat Min Sub Machines Disabled . | . . . . Max in Single Turn . | . . . . Machines Repaired . | . . . . Machines Dismantled . | . . . . Machines Sabotaged . | . . . . Overloaded Fab Kills . | . . . . Hacking | -11 -10 -10 -10 --------- Run | Yrd Mat Min Sub Machines Accessed 10 | . 8 2 . Terminals 9 | . 8 1 . Fabricators . | . . . . Repair Stations . | . . . . Recycling Units . | . . . . Scanalyzers . | . . . . Garrison Access . | . . . . Total Hacks 13 | . 8 5 . Successful 12 | . 8 4 . Failed 1 | . . 1 . Catastrophic . | . . . . Database Lockouts . | . . . . Manual 11 | . 7 4 . Terminals 12 | . 8 4 . Fabricators . | . . . . Repair Stations . | . . . . Recycling Units . | . . . . Scanalyzers . | . . . . Garrison Access . | . . . . Terminal Hacks 3 | . 1 2 . Robot Analysis 1 | . 1 . . Open Door 1 | . . 1 . Terminal Index 1 | . . 1 . Fabricator Hacks . | . . . . Repair Station Hacks . | . . . . Recycling Unit Hacks . | . . . . Scanalyzer . | . . . . Garrison Access Hacks . | . . . . Unauthorized Hacks 9 | . 7 2 . Terminals 9 | . 7 2 . Track 1 | . . 1 . Botnet 8 | . 7 1 . Fabricators . | . . . . Repair Stations . | . . . . Recycling Units . | . . . . Scanalyzers . | . . . . Garrison Access . | . . . . Data Cores Recovered . | . . . . Used . | . . . . Hacking Detections 4 | . 3 1 . Full Trace Events . | . . . . Feedback Events . | . . . . Feedback Blocked . | . . . . Robot Schematics Acquired . | . . . . Robots Built . | . . . . Authchips . | . . . . Time . | . . . . Total Robot Build Rating . | . . . . Part Schematics Acquired . | . . . . Parts Built . | . . . . Authchips . | . . . . Time . | . . . . Total Part Build Rating . | . . . . Part Studies Acquired . | . . . . Parts Repaired . | . . . . Time . | . . . . Parts Recycled . | . . . . Recycled Matter . | . . . . Retrieved Matter . | . . . . Retrieved Components . | . . . . Parts Scanalyzed . | . . . . Part Schematics Acquired . | . . . . Parts Damaged . | . . . . Bothacking | -11 -10 -10 -10 ------------ Run | Yrd Mat Min Sub Used RIF Installer . | . . . . Robots Hacked . | . . . . Non-combat . | . . . . Combat . | . . . . Robot Hacks Applied . | . . . . Relay Couplers Released . | . . . . Fabnet Peak Effective % . | . . . . Robots Rewired . | . . . . Allies Hacked . | . . . . Hacks Repelled . | . . . . Allies | -11 -10 -10 -10 -------- Run | Yrd Mat Min Sub Total Allies . | . . . . Largest Group . | . . . . Highest-Rated Group . | . . . . Highest-Rated Ally . | . . . . Total Orders . | . . . . Ally Attacks . | . . . . Total Damage . | . . . . Kills . | . . . . Allies Corrupted . | . . . . Allies Melted . | . . . . Intel | -11 -10 -10 -10 ------- Run | Yrd Mat Min Sub Active Infowar (turns) 4423 | . 1765 1546 1112 Sensors 1 | . . . 1 Terrain 4422 | . 1765 1546 1111 Robot Analysis Total 1 | . 1 . . Derelict Logs Recovered . | . . . . Drone Launches 16 | . . . 16 Drone Recoveries . | . . . . Exploration | -11 -10 -10 -10 ------------- Run | Yrd Mat Min Sub Turns Passed 4870 | 281 1765 1546 1278 Spaces Moved 1945 | 117 946 685 197 Core 59 | 11 . . 48 Treads 1886 | 106 946 685 149 Legs . | . . . . Wheels . | . . . . Hover . | . . . . Flight . | . . . . Fastest Speed 50 | 50 160 160 50 Average Speed 157 | 149 160 160 140 Slowest Speed 160 | 160 160 160 160 Overloaded Moves . | . . . . Propulsion Burnouts . | . . . . Robots Hopped . | . . . . Potential Cave-ins . | . . . . Cave-ins Triggered . | . . . . Exploration Rate (%) 55 | 5 99 100 16 Regions Visited 3 Branch Regions 2 Pre-discovered Areas 2 | . . 1 1 Known Exits Taken 3 | 1 1 1 . Unknown Exits Taken . | . . . . Scrap Searched 1 | . . 1 . Spaces Dug 15 | . . 15 . Terrain Destroyed 15 | . . 15 . Melee 15 | . . 15 . Projectile . | . . . . AOE . | . . . . Terrain Rammed . | . . . . Walls Destroyed . | . . . . Machines Disabled . | . . . . Actions | -11 -10 -10 -10 --------- Run | Yrd Mat Min Sub Total 3498 | 183 1084 1101 1130 Wait 1324 | 34 68 367 855 Move 1942 | 116 945 684 197 Hop . | . . . . Pick Up 19 | 8 5 4 2 Fast Attach 6 | . 1 1 4 Attach 11 | 5 3 . 3 Detach 3 | . 1 . 2 Swap 5 | . 2 2 1 Drop 13 | . 2 8 3 Fire 116 | 20 57 2 37 Melee 58 | . . 33 25 Ram 1 | . . . 1 Kick . | . . . . Crush . | . . . . Escape Stasis . | . . . . Rewire . | . . . . Trap . | . . . . Miscellaneous . | . . . . Route ------- -11/Scrapyard -10/Materials (discovered 6 exits: *Mat x3 / *Min x2 / *Sub) -10/Mines (discovered 3 exits: *Mat x2 / *Sub) -10/Subcaves (discovered 2 exits: *Mat / *Rec) History --------- Turn | Location | Event 3 | -11/Scrapyard | Identified exit to Materials 3 | -11/Scrapyard | Discovered exit to Materials (range 16) 282 | -11/Scrapyard | Entered Materials 282 | -10/Materials | Evolved 1 slot: Utility x1 303 | -10/Materials | Build established: Hacker-Mutant 472 | -10/Materials | Identified exit to Subcaves 472 | -10/Materials | Discovered exit to Subcaves (range 14) 495 | -10/Materials | Identified exit to Materials 495 | -10/Materials | Discovered exit to Materials (range 10) 580 | -10/Materials | Identified exit to Mines 580 | -10/Materials | Discovered exit to Mines (range 12) 635 | -10/Materials | Discovered exit to Materials (range 12) 711 | -10/Materials | Discovered exit to Mines (range 7) 782 | -10/Materials | Derelicts attacked the area 1437 | -10/Materials | Discovered exit to Materials (range 4) 2047 | -10/Materials | Entered Mines 2048 | -10/Mines | Learned location of Storage (-9) 2089 | -10/Mines | Found a damaged Exp. Sensor Array with a note attached 2094 | -10/Mines | Found Prototype Device 2132 | -10/Mines | A weapon hastily lodged in a ceiling crevice suddenly fell to the ground 2171 | -10/Mines | Discovered exit to Materials (range 14) 2342 | -10/Mines | Found the Drone Emporium 2353 | -10/Mines | Found Prototype Device 2417 | -10/Mines | Discovered exit to Materials (range 13) 2418 | -10/Mines | Received a Rocket Launcher from a helpful Derelict 3443 | -10/Mines | Discovered exit to Subcaves (range 6) 3593 | -10/Mines | Entered Subcaves 3594 | -10/Subcaves | Approached by a straggling Scientist 3599 | -10/Subcaves | Identified exit to Materials 3599 | -10/Subcaves | Discovered exit to Materials (range 15) 3809 | -10/Subcaves | Identified Exp. Sensor Array 3811 | -10/Subcaves | Identified Decoy Drone Bay 3880 | -10/Subcaves | Lost 16 allies 4179 | -10/Subcaves | Learned location of Zion (-6) 4179 | -10/Subcaves | Met a Zionite searching for "candidates" 4493 | -10/Subcaves | Ambushed by angry Subdweller bent on revenge 4562 | -10/Subcaves | Identified exit to Recycling 4562 | -10/Subcaves | Discovered exit to Recycling (range 14) 4779 | -10/Subcaves | Core integrity fell below 50% 4812 | -10/Subcaves | Lost 5 parts (1p2n1u1w) 4816 | -10/Subcaves | Core integrity fell below 20% 4871 | -10/Subcaves | Destroyed by Y1-FSV(R) with Subdweller Machine Gun Last Messages --------------- 04762_ Subatomizers dissect the Sub. Power Source. 04771_ Imp. Terrain Scanner destroyed. 04772_ Hvy. Assault Rifle destroyed. 04774_ Ion Engine destroyed. 04778_ Lgt. Treads destroyed. 04781_ RU-XOF(R) destroyed. 04784_ VO-OIG(R) destroyed. 04786_ Acquired 17 matter. 04799_ Acquired Particle Gun. 04800_ Acquired 10 matter. 04820_ FX-8BK(R) destroyed. 04822_ Mak. Spear destroyed. 04822_ Slammed into GA-LBI(R). 04827_ GA-LBI(R) destroyed. 04831_ Acquired Imp. Heat Sink. 04832_ Acquired 10 matter. 04842_ Acquired Sub. Machine Gun. 04845_ Acquired 3 matter. 04867_ Y1-FSV(R): "SUBHATE!" Map ----- +----------------------------------------------------+ | ????????????????????????????????????###""" "##### | | ????????????????????????????????????###" ##### | | ????????????????????????????????????###" % # # | | ????????????????????????????????????###"" | | ???????????????????????????????????###>% % | | ?????????????????????????????????????##"" | | ????????????????????????????????????###" #### | | ????????????????????????????????#???#?#" #### | | ???????????????????????????????????#?##""" "### | | ????????????????????????????#?####??######?##### | | ???????????????????????????? ## ## ?####### | | ????????????????????????????? #?####### # | | ????????????????????????????? #??##### ### | | ?????????????????????????????? ## ##??### ""## | | ??????????????????????????????$ ## ##### !##### | | ?????????????????????????????## ## ## ##"%###? | | ????????????????????????????#? "## " =%###### | | ?????????????????????????????##" # "### *! ##?# | | ??????????????????????????#### # ### ##?? | | ??????????????????????????#!%* #### ##?# | | ??????????????????????????#%&&! #?#"" """"#? | | ??????????????????????????#& #= ###" """"""" ##? | | ??????????????????????????##=## "##"""### ##?# | | ????????????????????????### #%= """"##?#######??? | | ???????????????#%=## #"# ## %###""#" #??????????? | | ????????????"" [ | @ R"##??###" ##????#????? | | ????????????"" *% """"" #??????##????????#?? | | ????????????"" "# ## #""#"" #???????????????#??? | | ?????????????????????#?#####" "?????????#?????#?? | | ???????????????????????????#" "" ????????????????? | | ???????????????????????????# ###"???????????????? | | ???????????????????????????? "#??????????????????? | | ?????????????????????????????"#??????????????????? | | ?????????????????????????????????????????????????? | | ?????????????????????????????????????????????????? | | ?????????????????????????????????????????????????? | | ?????????????????????????????????????????????????? | | ?????????????????????????????????????????????????? | | ?????????????????????????????????????????????????? | | ?????????????????????????????????????????????????? | | ?????????????????????????????????????????????????? | | ?????????????????????????????????????????????????? | | ?????????????????????????????????????????????????? | | ?????????????????????????????????????????????????? | | ?????????????????????????????????????????????????? | | ?????????????????????????????????????????????????? | | ?????????????????????????????????????????????????? | | ?????????????????????????????????????????????????? | | ?????????????????????????????????????????????????? | | ?????????????????????????????????????????????????? | +----------------------------------------------------+ Best States ------------- Heat Dissipation 39 Energy Generation 10 Energy Capacity 250 Matter Stores 300 Matter Capacity 300 Sight Range 16 Robot Scan Range 20 Terrain Scan Range 16 Terrain Scan Density 160 Resistance: KI 35 Resistance: TH 35 Resistance: EX 35 Resistance: EM 35 Resistance: I 35 Resistance: S 35 Resistance: P 35 Evasion (%) 50 Recoil Reduction 2 Offensive Hacking 20 Item Schematics ----------------- None Robot Schematics ------------------ None Fabricated ------------ Nothing Repaired ---------- Nothing Studied --------- None Alien Tech Used ----------------- None Achievements -------------- None Challenges ------------ None Game ------ Seed GlidesysSniperExoskeleton Manual? 0 Play Time 00:22:35 Cumulative 163.9 hours Start 2025.12.04 @ 07:53:33 End 2025.12.04 @ 08:12:07 Sessions 1 Manual Loads 0 Difficulty Explorer Special Mode None Game No. 218 Rogue 0 Adventurer 0 Explorer 218 Win Type - Total 0 Types 0/0/0/0/0/0/0/0/0/0 Lore% 70 Gallery% 66 Achievement% 52 Wizard Run 0 Options --------- Layout 1 ASCII 0 Keyboard 0 Movement Mouse Keybinds 0 Fullscreen 1 Font 24/Smallcaps Map View 50x35 Zoom Use 0% Tactical HUD 1 Map Filters NONE Filters NONE Steam 1 RUN: 05261181-0313-4e4c-8d6c-d895e0836c9c